fUST/lending_fUST_20250113
["ID","MTS","AMOUNT","RATE_DAILY","PERIOD"]
[348745333,1736766645436,-500.0,0.00022514,2]
[348745336,1736766645446,-192.58349096,0.00022514,2]
[348745338,1736766645455,-783.95214376,0.00022521,2]
[348745340,1736766645465,-2084.97,0.00022543,3]
[348745342,1736766645474,-783.95214376,0.0002259,2]
[348745344,1736766645483,-500.0,0.00022601,13]
[348745346,1736766645493,-1460.28,0.00022618,2]
[348745348,1736766645502,-850.06,0.00022618,3]
[348745350,1736766645511,-500.0,0.00022618,3]
[348745352,1736766645521,-500.0,0.00022618,3]
[348745354,1736766645530,-365.96,0.00022618,3]
[348745356,1736766645539,-1500.0,0.00022622,2]
[348745358,1736766645549,-783.95214376,0.00022659,2]
[348745360,1736766645558,-500.0,0.00022672,3]
[348745362,1736766645567,-500.0,0.00022673,2]
[348745364,1736766645577,-1267.2,0.00022673,3]
[348745366,1736766645587,-783.95214376,0.00022728,2]
[348745368,1736766645596,-500.0,0.00022738,3]
[348745369,1736766645607,-500.0,0.00022738,3]
[348745371,1736766645617,-500.0,0.00022738,3]
[348745373,1736766645626,-500.0,0.00022738,3]
[348745376,1736766645638,-500.0,0.00022738,3]
[348745378,1736766645647,-500.0,0.00022738,3]
[348745380,1736766645657,-509.52905328,0.00022738,3]
[348745382,1736766645667,-500.0,0.00022738,3]
[348745384,1736766645676,-500.0,0.00022738,3]
[348745386,1736766645686,-500.0,0.00022738,3]
[348745388,1736766645695,-500.0,0.00022738,3]
[348745390,1736766645704,-500.0,0.00022738,3]
[348745392,1736766645713,-504.8663192,0.00022738,3]
[348745394,1736766645723,-500.0,0.00022738,3]
[348745396,1736766645732,-151.0,0.00022738,7]
[348745397,1736766645742,-500.0,0.00022738,3]
[348745399,1736766645751,-151.0,0.00022738,7]
[348745401,1736766645761,-500.0,0.00022738,3]
[348745402,1736766645770,-151.0,0.00022738,7]
[348745404,1736766645779,-221.490606,0.00022738,7]
[348745406,1736766645789,-221.490606,0.00022738,7]
[348745409,1736766645800,-202.2,0.00022738,3]
[348745411,1736766645810,-500.0,0.00022738,3]
[348745412,1736766645820,-202.95987,0.00022738,7]
[348745414,1736766645829,-202.95987,0.00022738,7]
[348745416,1736766645839,-500.0,0.00022738,3]
[348745417,1736766645850,-500.0,0.00022738,3]
[348745418,1736766645860,-360.16,0.00022738,3]
[348745419,1736766645870,-5760.43,0.00022738,3]
[348745420,1736766645879,-500.0,0.00022738,3]
[348745421,1736766645888,-500.0,0.00022738,3]
[348745423,1736766645898,-2788.86,0.00022739,3]
[348745425,1736766645907,-649.23,0.00022739,3]
[348745427,1736766645917,-783.95214376,0.00022797,2]
[348745429,1736766645926,-2084.97,0.00022817,3]
[348745430,1736766645936,-783.95214376,0.00022866,2]
[348745432,1736766645946,-500.0,0.00022876,2]
[348745434,1736766645955,-1460.28,0.00022892,2]
[348745436,1736766645966,-850.06,0.00022892,3]
[348745438,1736766645975,-500.0,0.00022892,3]
[348745440,1736766645985,-500.0,0.00022892,3]
[348745442,1736766645995,-783.95214376,0.00022934,2]
[348745444,1736766646005,-500.0,0.00022946,3]
[348745446,1736766646015,-151.0,0.00022946,7]
[348745448,1736766646025,-500.0,0.00022947,2]
[348745450,1736766646035,-1267.2,0.00022947,3]
[348745453,1736766646045,-7438.69753278,0.00023,2]
[348745456,1736766646054,-300.0,0.00023,10]
[348745458,1736766646064,-7438.69753278,0.00023,3]
[348745461,1736766646075,-783.95214376,0.00023003,2]
[348745462,1736766646088,-500.0,0.00023012,3]
[348745464,1736766646098,-500.0,0.00023012,3]
[348745466,1736766646108,-585.19,0.00023012,3]
[348745469,1736766646117,-500.0,0.00023012,3]
[348745472,1736766646129,-500.0,0.00023012,3]
[348745475,1736766646139,-500.0,0.00023012,3]
[348745478,1736766646148,-500.0,0.00023012,3]
[348745480,1736766646159,-500.0,0.00023012,3]
[348745482,1736766646168,-151.0,0.00023012,7]
[348745484,1736766646178,-500.0,0.00023012,3]
[348745486,1736766646187,-500.0,0.00023012,3]
[348745488,1736766646197,-500.0,0.00023012,3]
[348745490,1736766646207,-5760.43,0.00023012,3]
[348745492,1736766646217,-256.49968267,0.00023012,3]
[348745494,1736766646226,-500.0,0.00023012,3]
[348745496,1736766646236,-2788.86,0.00023013,3]
[348745498,1736766646246,-649.23,0.00023013,3]
[348745500,1736766646255,-150.0,0.00023014,2]
[348745502,1736766646265,-157.0,0.00023014,2]
[348745504,1736766646275,-1000.0,0.00023021,2]
[348745506,1736766646284,-227.57469702,0.00023062,2]
[348745508,1736766646294,-1000.0,0.00023062,2]
[348745510,1736766646305,-1000.0,0.00023062,2]
[348745512,1736766646315,-1000.0,0.00023062,2]
[348745514,1736766646326,-1000.0,0.00023062,2]
[348745516,1736766646336,-1000.0,0.00023062,2]
[348745518,1736766646346,-783.95214376,0.00023072,2]
[348745529,1736766646441,-2084.97,0.00023091,3]
[348745531,1736766646453,-783.95214376,0.00023141,2]
[348745533,1736766646463,-1460.28,0.00023166,2]
[348745535,1736766646474,-850.06,0.00023166,3]
[348745537,1736766646485,-500.0,0.00023166,3]
[348745540,1736766646495,-500.0,0.00023166,3]
[348745542,1736766646506,-783.95214376,0.0002321,2]
[348745544,1736766646515,-500.0,0.0002322,3]
[348745546,1736766646525,-500.0,0.00023221,2]
[348745548,1736766646535,-1267.2,0.00023221,3]
[348745550,1736766646545,-587.0,0.00023262,2]
[348745552,1736766646555,-151.0,0.00023273,7]
[348745554,1736766646564,-202.95987,0.00023273,7]
[348745556,1736766646574,-202.95987,0.00023273,7]
[348745558,1736766646584,-783.95214376,0.00023279,2]
[348745560,1736766646594,-602.83898624,0.00023286,3]
[348745562,1736766646605,-500.0,0.00023286,3]
[348745564,1736766646614,-500.0,0.00023286,3]
[348745566,1736766646623,-500.0,0.00023286,3]
[348745568,1736766646633,-151.0,0.00023286,7]
[348745570,1736766646643,-500.0,0.00023286,3]
[348745572,1736766646652,-221.490606,0.00023286,7]
[348745574,1736766646662,-221.490606,0.00023286,7]
[348745576,1736766646675,-265.59,0.00023286,3]
[348745578,1736766646685,-500.0,0.00023286,3]
[348745580,1736766646694,-500.0,0.00023286,3]
[348745582,1736766646704,-5760.43,0.00023286,3]
[348745584,1736766646714,-500.0,0.00023286,15]
[348745586,1736766646723,-560.94,0.00023286,3]
[348745588,1736766646733,-2788.86,0.00023287,3]
[348745590,1736766646742,-649.23,0.00023287,3]
[348745592,1736766646752,-151.0,0.00023295,7]
[348745594,1736766646761,-3866.0,0.00023328,7]
[348745596,1736766646771,-783.95214376,0.00023348,2]
[348745598,1736766646782,-2084.97,0.00023365,3]
[348745600,1736766646792,-1078.1956085,0.00023369,2]
[348745602,1736766646802,-416.67,0.00023391,2]
[348745604,1736766646813,-783.95214376,0.00023417,2]
[348745606,1736766646823,-500.0,0.00023439,10]
[348745608,1736766646832,-500.0,0.00023439,10]
[348745610,1736766646842,-500.0,0.00023439,10]
[348745612,1736766646853,-500.0,0.00023439,10]
[348745614,1736766646863,-500.0,0.00023439,10]
[348745616,1736766646873,-500.0,0.00023439,10]
[348745618,1736766646883,-500.0,0.00023439,10]
[348745620,1736766646893,-500.0,0.00023439,10]
[348745622,1736766646903,-500.0,0.00023439,10]
[348745625,1736766646915,-500.0,0.00023439,10]
[348745627,1736766646924,-500.0,0.00023439,10]
[348745629,1736766646934,-500.0,0.00023439,10]
[348745631,1736766646944,-858.93880477,0.00023439,10]
[348745634,1736766646954,-500.0,0.00023439,10]
[348745637,1736766646964,-500.0,0.00023439,10]
[348745639,1736766646973,-500.0,0.00023439,10]
[348745641,1736766646983,-500.0,0.00023439,10]
[348745643,1736766646992,-500.0,0.00023439,10]
[348745645,1736766647002,-563.75705721,0.00023439,10]
[348745647,1736766647011,-500.0,0.00023439,10]
[348745649,1736766647022,-500.0,0.00023439,10]
[348745651,1736766647031,-500.0,0.00023439,10]
[348745653,1736766647041,-500.0,0.00023439,10]
[348745655,1736766647051,-500.0,0.00023439,10]
[348745657,1736766647061,-610.40715821,0.00023439,10]
[348745659,1736766647070,-1900.0,0.00023439,10]
[348745661,1736766647082,-1900.0,0.00023439,10]
[348745663,1736766647100,-1900.0,0.00023439,10]
[348745665,1736766647109,-1900.0,0.00023439,10]
[348745667,1736766647119,-1900.0,0.00023439,10]
[348745669,1736766647130,-1900.0,0.00023439,10]
[348745671,1736766647140,-1900.0,0.00023439,10]
[348745673,1736766647149,-1900.0,0.00023439,10]
[348745675,1736766647159,-1900.0,0.00023439,10]
[348745678,1736766647171,-1900.0,0.00023439,10]
[348745680,1736766647180,-1900.0,0.00023439,10]
[348745682,1736766647190,-1900.0,0.00023439,10]
[348745684,1736766647200,-1900.0,0.00023439,10]
[348745686,1736766647209,-3590.05096516,0.00023439,10]
[348745687,1736766647219,-1460.28,0.0002344,2]
[348745689,1736766647229,-850.06,0.0002344,3]
[348745691,1736766647238,-500.0,0.0002344,3]
[348745694,1736766647248,-228.53,0.0002344,3]
[348745696,1736766647258,-22542.25016363,0.00023474,2]
[348745698,1736766647267,-783.95214376,0.00023486,2]
[348745700,1736766647278,-267.97,0.00023494,3]
[348745702,1736766647287,-500.0,0.00023495,2]
[348745704,1736766647297,-1267.2,0.00023495,3]
[348745706,1736766647307,-151.0,0.00023503,7]
[348745708,1736766647317,-3000.0,0.00023503,2]
[348745710,1736766647326,-851.34193587,0.00023503,2]
[348745723,1736766647447,-500.0,0.0002082,3]
[348745725,1736766647456,-500.0,0.00021094,3]
[348745727,1736766647466,-2148.65806413,0.00023503,2]
[348745729,1736766647476,-25377.33276174,0.00023527,2]
[348745731,1736766647486,-169.93049228,0.00023535,2]
[348745733,1736766647496,-169.93049228,0.00023535,2]
[348745735,1736766647505,-169.93049228,0.00023535,2]
[348745737,1736766647515,-169.93049228,0.00023535,2]
[348745739,1736766647524,-169.93049228,0.00023535,2]
[348745741,1736766647533,-169.93049228,0.00023535,2]
[348745743,1736766647543,-169.93049228,0.00023535,2]
[348745745,1736766647552,-169.93049228,0.00023535,2]
[348745747,1736766647562,-169.93049228,0.00023535,2]
[348745749,1736766647571,-169.93049228,0.00023535,2]
[348745752,1736766647581,-169.93049228,0.00023535,2]
[348745754,1736766647591,-169.93049228,0.00023535,2]
[348745756,1736766647600,-169.93049228,0.00023535,2]
[348745758,1736766647611,-169.93049228,0.00023535,2]
[348745759,1736766647620,-169.93049228,0.00023535,2]
[348745761,1736766647629,-169.93049228,0.00023535,2]
[348745764,1736766647640,-169.93049228,0.00023535,2]
[348745766,1736766647650,-169.93049228,0.00023535,2]
[348745768,1736766647659,-169.93049228,0.00023535,2]
[348745770,1736766647669,-169.93,0.00023535,2]
[348745772,1736766647678,-254.89573842,0.00023535,2]
[348745774,1736766647687,-254.89573842,0.00023535,2]
[348745776,1736766647697,-254.89573842,0.00023535,2]
[348745778,1736766647706,-254.89573842,0.00023535,2]
[348745780,1736766647716,-254.89573842,0.00023535,2]
[348745782,1736766647725,-254.89573842,0.00023535,2]
[348745784,1736766647734,-254.89573842,0.00023535,2]
[348745786,1736766647744,-254.89573842,0.00023535,2]
[348745788,1736766647753,-254.89573842,0.00023535,2]
[348745790,1736766647762,-254.89573842,0.00023535,2]
[348745792,1736766647772,-254.89573842,0.00023535,2]
[348745794,1736766647782,-254.89573842,0.00023535,2]
[348745796,1736766647791,-254.89573842,0.00023535,2]
[348745798,1736766647800,-254.89573842,0.00023535,2]
[348745800,1736766647810,-254.89573842,0.00023535,2]
[348745802,1736766647820,-254.89573842,0.00023535,2]
[348745804,1736766647829,-254.89573842,0.00023535,2]
[348745806,1736766647839,-254.89573842,0.00023535,2]
[348745808,1736766647848,-254.89573842,0.00023535,2]
[348745810,1736766647859,-254.89,0.00023535,2]
[348745812,1736766647870,-783.95214376,0.00023555,2]
[348745814,1736766647879,-500.0,0.0002356,3]
[348745816,1736766647890,-500.0,0.0002356,3]
[348745818,1736766647899,-500.0,0.0002356,3]
[348745820,1736766647909,-500.0,0.0002356,3]
[348745822,1736766647920,-500.0,0.0002356,3]
[348745824,1736766647930,-167.84,0.0002356,3]
[348745826,1736766647939,-5507.1763605,0.0002356,3]
[348745829,1736766647952,-253.2536395,0.0002356,3]
[348745831,1736766647961,-607.0883605,0.00023561,3]
[348745852,1736766648174,-500.0,0.00019178,2]
[348745854,1736766648185,-500.0,0.00019452,2]
[348745856,1736766648195,-500.0,0.00019726,2]
[348745858,1736766648206,-333.04,0.0002,2]
[348745861,1736766648219,-166.96,0.0002,2]
[348745863,1736766648229,-500.0,0.00020273,2]
[348745865,1736766648240,-500.0,0.00020546,3]
[348745867,1736766648249,-500.0,0.00020547,2]
[348745869,1736766648260,-500.0,0.00020821,2]
[348745871,1736766648270,-229.49922104,0.00021095,2]
[348745873,1736766648280,-316.35325514,0.00023,2]
[348745875,1736766648290,-2181.7716395,0.00023561,3]
[348745877,1736766648300,-649.23,0.00023561,3]
[348745879,1736766648310,-151.0,0.0002359,7]
[348745880,1736766648320,-1.18588464,0.0002359,7]
[348745910,1736766648702,-220.30472136,0.0002359,7]
[348745912,1736766648724,-221.490606,0.0002359,7]
[348745914,1736766648745,-151.0,0.000236,10]
[348745916,1736766648767,-151.0,0.000236,10]
[348745918,1736766648788,-151.0,0.000236,7]
[348745920,1736766648809,-151.0,0.000236,6]
[348745922,1736766648830,-151.0,0.000236,7]
[348745924,1736766648848,-158.43,0.000236,31]
[348745926,1736766648859,-158.43,0.000236,31]
[348745928,1736766648869,-158.43,0.000236,31]
[348745930,1736766648883,-158.43,0.000236,31]
[348745932,1736766648893,-158.43,0.000236,31]
[348745934,1736766648904,-67.47208401,0.000236,31]
[348745937,1736766648916,-90.95791599,0.000236,31]
[348745939,1736766648926,-158.43,0.000236,31]
[348745940,1736766648936,-151.0,0.00023601,7]
[348745942,1736766648946,-151.0,0.00023601,7]
[348745944,1736766648957,-151.0,0.00023601,7]
[348745946,1736766648967,-151.0,0.00023601,7]
[348745948,1736766648977,-151.0,0.00023601,7]
[348745959,1736766649081,-151.0,0.00023601,7]
[348745961,1736766649094,-151.0,0.00023601,7]
[348745963,1736766649107,-151.0,0.00023601,7]
[348745965,1736766649117,-151.0,0.00023601,7]
[348745967,1736766649127,-89.94273425,0.00023601,7]
[348745970,1736766649139,-61.05726575,0.00023601,7]
[348745972,1736766649151,-151.0,0.00023601,7]
[348745974,1736766649163,-151.0,0.00023601,7]
[348745976,1736766649174,-151.0,0.00023601,7]
[348745978,1736766649184,-151.0,0.00023601,7]
[348745980,1736766649194,-289.522834,0.00023601,7]
[348745982,1736766649204,-151.0,0.00023601,7]
[348745984,1736766649214,-151.0,0.00023601,7]
[348745985,1736766649224,-151.0,0.00023601,7]
[348745988,1736766649234,-151.0,0.00023601,7]
[348745990,1736766649246,-171.873718,0.00023601,7]
[348745991,1736766649256,-151.0,0.00023601,7]
[348745993,1736766649265,-151.0,0.00023601,7]
[348745995,1736766649274,-151.0,0.00023601,7]
[348745997,1736766649284,-151.0,0.00023601,7]
[348745999,1736766649294,-202.95987,0.00023601,7]
[348746001,1736766649303,-202.95987,0.00023601,7]
[348746003,1736766649313,-151.0,0.00023603,7]
[348746005,1736766649322,-151.0,0.00023603,7]
[348746007,1736766649332,-151.0,0.00023603,7]
[348746009,1736766649342,-151.0,0.00023603,7]
[348746011,1736766649351,-151.0,0.00023603,7]
[348746013,1736766649362,-151.0,0.00023603,7]
[348746015,1736766649372,-151.0,0.00023603,7]
[348746017,1736766649383,-174.594876,0.00023603,7]
[348746019,1736766649393,-202.95987,0.00023603,7]
[348746021,1736766649402,-202.95987,0.00023603,7]
[348746023,1736766649412,-151.0,0.00023607,7]
[348746025,1736766649422,-151.0,0.00023607,7]
[348746027,1736766649432,-151.0,0.00023607,7]
[348746029,1736766649442,-151.0,0.00023607,7]
[348746031,1736766649451,-181.805416,0.00023607,7]
[348746033,1736766649461,-151.0,0.00023607,7]
[348746035,1736766649471,-151.0,0.00023607,7]
[348746037,1736766649482,-151.0,0.00023607,7]
[348746039,1736766649492,-151.0,0.00023607,7]
[348746041,1736766649503,-151.0,0.00023607,7]
[348746043,1736766649513,-151.0,0.00023607,7]
[348746045,1736766649522,-151.0,0.00023607,7]
[348746047,1736766649532,-165.291176,0.00023607,7]
[348746049,1736766649541,-151.0,0.00023607,7]
[348746051,1736766649551,-183.372696,0.00023607,7]
[348746053,1736766649560,-501.06639573,0.00023609,9]
[348746055,1736766649569,-150.21,0.00023617,10]
[348746057,1736766649579,-150.21,0.00023617,10]
[348746059,1736766649588,-150.83733543,0.00023617,10]
[348746061,1736766649597,-150.21,0.00023617,10]
[348746063,1736766649608,-150.21,0.00023617,10]
[348746065,1736766649618,-150.21,0.00023617,2]
[348746066,1736766649627,-988.03883602,0.00023617,10]
[348746067,1736766649636,-150.21,0.00023617,2]
[348746068,1736766649646,-150.21,0.00023617,10]
[348746069,1736766649655,-150.21,0.00023617,2]
[348746070,1736766649665,-150.27359089,0.00023617,10]
[348746071,1736766649674,-783.95214376,0.00023624,2]
[348746072,1736766649684,-151.0,0.00023627,7]
[348746073,1736766649693,-151.0,0.00023627,7]
[348746074,1736766649702,-151.0,0.00023627,7]
[348746075,1736766649712,-223.805253,0.00023627,7]
[348746076,1736766649721,-1000.0,0.00023627,7]
[348746077,1736766649730,-1000.0,0.00023627,7]
[348746078,1736766649739,-1000.0,0.00023627,7]
[348746079,1736766649749,-1000.0,0.00023627,7]
[348746080,1736766649758,-601.725899,0.00023627,7]
[348746081,1736766649767,-221.490606,0.00023627,7]
[348746082,1736766649776,-221.490606,0.00023627,7]
[348746083,1736766649785,-221.490606,0.00023627,7]
[348746084,1736766649795,-221.490606,0.00023627,7]
[348746085,1736766649804,-221.490606,0.00023627,7]
[348746086,1736766649814,-221.490606,0.00023627,7]
[348746087,1736766649823,-221.490606,0.00023627,7]
[348746088,1736766649832,-221.490606,0.00023627,7]
[348746089,1736766649842,-221.490606,0.00023627,7]
[348746090,1736766649851,-221.490606,0.00023627,7]
[348746091,1736766649862,-221.490606,0.00023627,7]
[348746093,1736766649871,-221.490614,0.00023627,7]
[348746094,1736766649881,-202.95987,0.00023627,7]
[348746095,1736766649890,-202.95987,0.00023627,7]
[348746096,1736766649900,-202.95987,0.00023627,7]
[348746097,1736766649909,-202.95987,0.00023627,7]
[348746098,1736766649919,-202.95987,0.00023627,7]
[348746099,1736766649928,-202.95987,0.00023627,7]
[348746100,1736766649937,-202.95987,0.00023627,7]
[348746101,1736766649947,-202.95987,0.00023627,7]
[348746102,1736766649956,-202.95987,0.00023627,7]
[348746103,1736766649965,-202.95987,0.00023627,7]
[348746104,1736766649975,-202.95987,0.00023627,7]
[348746105,1736766649985,-202.959872,0.00023627,7]
[348746106,1736766649994,-50025.2313602,0.00023634,5]
[348746107,1736766650004,-14713.93519035,0.00023634,5]
[348746108,1736766650014,-227823.03945953,0.00023635,10]
[348746109,1736766650027,-33880.000013,0.00023635,10]
[348746136,1736766994856,227.011528,0.00013973,2]
[348746142,1736767565882,5935.97459728,0.00015052,2]
[348746143,1736767565917,2068.02540272,0.00015052,2]
[348746146,1736767626616,-477.26410521,0.00016242,2]
[348746147,1736767626639,-102.44936316,0.00016406,2]
[348746148,1736767638140,-4699.30755331,0.00016406,2]
[348746149,1736767746112,-198.24308353,0.00016406,2]
[348746150,1736767746137,-457.7202103,0.00017252,2]
[348746151,1736767746160,-300.0,0.0001731,2]
[348746152,1736767746182,-15177.7320023,0.00017311,2]
[348746153,1736767746205,-1414.165032,0.00017461,2]
[348746154,1736767746226,-330.9809,0.00017711,2]
[348746155,1736767746249,-24536.6819107,0.00018181,2]
[348746156,1736767760086,-647.7365192,0.00018133,2]
[348746157,1736767760109,-363.3180893,0.00018181,2]
[348746158,1736767760131,-164.9453915,0.00018901,2]
[348746159,1736767768097,-2000.0,0.00017952,2]
[348746160,1736767768122,-24900.0,0.00018178,2]
[348746161,1736767768146,-255.0546085,0.00018901,2]
[348746162,1736767768168,-29073.47518336,0.00019,4]
[348746163,1736767768194,-500.0,0.00019177,2]
[348746164,1736767768218,-500.0,0.00019177,2]
[348746165,1736767768242,-430.21638171,0.00019177,2]
[348746166,1736767768267,-557.51276037,0.00019177,2]
[348746167,1736767768292,-500.0,0.00019177,2]
[348746168,1736767768317,-500.0,0.00019177,2]
[348746169,1736767768342,-500.0,0.00019177,2]
[348746170,1736767768368,-500.0,0.00019177,2]
[348746171,1736767768394,-500.0,0.00019177,2]
[348746172,1736767768418,-327.89199831,0.00019177,2]
[348746173,1736767768445,-500.0,0.00019177,2]
[348746174,1736767768471,-264.64247526,0.00019177,2]
[348746175,1736767768496,-500.0,0.00019177,2]
[348746176,1736767768519,-248.35,0.00019178,2]
[348746177,1736767768541,-269.09197388,0.00019178,2]
[348746178,1736767768563,-500.0,0.00019178,2]
[348746179,1736767768585,-500.0,0.00019178,2]
[348746180,1736767768609,-500.0,0.00019178,2]
[348746181,1736767768632,-500.0,0.00019178,2]
[348746182,1736767768656,-500.0,0.00019178,2]
[348746183,1736767768680,-500.0,0.00019178,2]
[348746184,1736767768703,-500.0,0.00019178,2]
[348746185,1736767768725,-500.0,0.00019178,2]
[348746186,1736767768748,-500.0,0.00019178,2]
[348746187,1736767768770,-500.0,0.00019178,2]
[348746188,1736767768793,-500.0,0.00019178,2]
[348746189,1736767768816,-500.0,0.00019178,2]
[348746190,1736767768839,-500.0,0.00019178,2]
[348746191,1736767768861,-500.0,0.00019178,2]
[348746192,1736767768883,-500.0,0.00019178,2]
[348746193,1736767768904,-500.0,0.00019178,2]
[348746194,1736767768925,-500.0,0.00019178,2]
[348746195,1736767768947,-500.0,0.00019178,2]
[348746196,1736767768969,-500.0,0.00019178,2]
[348746197,1736767768991,-500.0,0.00019178,2]
[348746198,1736767769014,-500.0,0.00019178,2]
[348746199,1736767769035,-500.0,0.00019178,2]
[348746200,1736767769058,-500.0,0.00019178,7]
[348746201,1736767769080,-429.4158668,0.00019178,2]
[348746202,1736767769103,-501.31805084,0.00019178,2]
[348746203,1736767769124,-500.0,0.00019178,2]
[348746204,1736767769148,-500.0,0.00019178,2]
[348746205,1736767769171,-500.0,0.00019178,2]
[348746206,1736767769192,-500.0,0.00019178,2]
[348746207,1736767769215,-500.0,0.00019178,2]
[348746208,1736767769238,-501.80206379,0.00019178,2]
[348746209,1736767769260,-500.0,0.00019178,2]
[348746210,1736767769282,-500.0,0.00019178,2]
[348746211,1736767769427,-500.0,0.00019178,2]
[348746212,1736767769454,-641.29954893,0.00019178,2]
[348746213,1736767769477,-500.0,0.00019178,2]
[348746215,1736767769501,-500.0,0.00019178,2]
[348746216,1736767769524,-500.0,0.00019178,2]
[348746217,1736767769546,-500.0,0.00019178,2]
[348746218,1736767769570,-500.0,0.00019178,2]
[348746219,1736767769592,-500.0,0.00019178,2]
[348746220,1736767769614,-500.0,0.00019178,2]
[348746221,1736767769638,-500.0,0.00019178,2]
[348746222,1736767769662,-553.98655712,0.00019178,2]
[348746223,1736767769684,-500.0,0.00019178,2]
[348746224,1736767769707,-500.0,0.00019178,2]
[348746225,1736767769729,-500.0,0.00019178,2]
[348746226,1736767769750,-500.0,0.00019178,2]
[348746227,1736767769771,-500.0,0.00019178,2]
[348746228,1736767769792,-500.87280036,0.00019178,2]
[348746229,1736767769813,-500.0,0.00019178,2]
[348746230,1736767769835,-500.0,0.00019178,2]
[348746231,1736767769857,-502.23701622,0.00019178,2]
[348746232,1736767769878,-500.0,0.00019178,2]
[348746233,1736767769900,-189.16917728,0.00019178,2]
[348746234,1736767769922,-500.0,0.00019178,2]
[348746235,1736767769944,-500.0,0.00019178,2]
[348746236,1736767769966,-500.0,0.00019178,2]
[348746237,1736767769988,-500.0,0.00019178,2]
[348746238,1736767770010,-501.88199142,0.00019178,2]
[348746239,1736767770032,-500.0,0.00019178,2]
[348746240,1736767770054,-500.0,0.00019178,2]
[348746241,1736767770076,-500.0,0.00019178,2]
[348746242,1736767770099,-500.0,0.00019178,2]
[348746243,1736767770121,-406.59965588,0.00019178,2]
[348746244,1736767770144,-500.0,0.00019178,2]
[348746245,1736767770166,-500.0,0.00019178,2]
[348746246,1736767770188,-160.76718684,0.00019178,2]
[348746247,1736767770210,-500.0,0.00019178,2]
[348746248,1736767770234,-1037.29,0.00019178,2]
[348746249,1736767770258,-1003.69,0.00019178,2]
[348746250,1736767770280,-500.0,0.00019178,2]
[348746251,1736767770302,-500.0,0.00019178,2]
[348746252,1736767770324,-500.0,0.00019178,2]
[348746253,1736767770348,-500.0,0.00019178,2]
[348746254,1736767770371,-500.0,0.00019178,2]
[348746255,1736767770394,-500.0,0.00019178,2]
[348746256,1736767770416,-500.0,0.00019178,2]
[348746257,1736767770441,-500.0,0.00019178,2]
[348746258,1736767770464,-500.0,0.00019178,2]
[348746259,1736767770488,-500.0,0.00019178,2]
[348746260,1736767770512,-500.0,0.00019178,2]
[348746261,1736767770536,-5459.94,0.00019178,2]
[348746262,1736767770559,-500.0,0.00019178,2]
[348746263,1736767770583,-500.0,0.00019178,2]
[348746264,1736767770606,-500.0,0.00019178,2]
[348746265,1736767770629,-500.0,0.00019178,2]
[348746266,1736767770653,-500.0,0.00019178,2]
[348746267,1736767770677,-500.0,0.00019178,2]
[348746268,1736767770700,-500.0,0.00019178,2]
[348746269,1736767770723,-500.0,0.00019178,2]
[348746270,1736767770746,-500.0,0.00019178,2]
[348746271,1736767770768,-500.0,0.00019178,2]
[348746272,1736767770793,-500.0,0.00019178,2]
[348746273,1736767770816,-500.0,0.00019178,2]
[348746274,1736767770841,-523.99,0.00019178,2]